bitfinex/quotes_SOLUSD_20230103
["timestamp","ask_amount","ask_price","bid_price","bid_amount"]
[1672765984620,56.5,13.288,13.273,30.0]
[1672765985246,56.5,13.288,13.273,11.08137784]
[1672765985890,30.0,13.287,13.274,20.0]
[1672765986098,56.5,13.286,13.274,20.0]
[1672765986527,56.5,13.288,13.274,20.0]
[1672765987167,56.5,13.288,13.274,30.0]
[1672765987360,56.5,13.288,13.275,20.0]
[1672765987566,56.5,13.288,13.275,31.08137784]
[1672765987991,56.5,13.288,13.276,11.08137784]
[1672765988202,56.5,13.288,13.277,20.0]
[1672765989260,56.5,13.288,13.275,20.0]
[1672765989689,55.5,13.288,13.275,31.08137784]
[1672765990094,55.5,13.288,13.275,20.0]
[1672765990735,55.5,13.288,13.274,20.0]
[1672765991140,55.5,13.288,13.274,31.08137784]
[1672765991776,30.0,13.287,13.274,20.0]
[1672765992205,30.0,13.287,13.272,59.42067784]
[1672765992206,56.5,13.286,13.272,59.42067784]
[1672765992418,30.0,13.285,13.272,11.08137784]
[1672765992634,56.51,13.284,13.273,20.0]
[1672765993057,56.5,13.286,13.273,31.08137784]
[1672765993675,30.0,13.285,13.273,20.0]
[1672765994005,30.0,13.285,13.268,30.0]
[1672765994006,56.51,13.284,13.269,66.272]
[1672765994526,56.51,13.284,13.27,30.0]
[1672765994742,56.51,13.284,13.271,20.0]
[1672765994953,56.51,13.284,13.271,31.08137784]
[1672765995144,56.51,13.284,13.263,24.1958]
[1672765995474,56.51,13.284,13.267,11.08137784]
[1672765995475,49.3368,13.283,13.267,11.08137784]
[1672765995672,49.3368,13.283,13.268,20.0]
[1672765996005,49.3368,13.283,13.269,11.08137784]
[1672765996317,56.52,13.282,13.27,50.0]
[1672765996522,49.3368,13.283,13.27,50.0]
[1672765996731,49.3368,13.283,13.271,11.08137784]
[1672765996934,49.3368,13.283,13.272,20.0]
[1672765997359,49.3368,13.283,13.273,11.08137784]
[1672765997687,49.3368,13.283,13.274,20.0]
[1672765998091,56.51,13.284,13.274,20.0]
[1672765998623,330.9571,13.285,13.274,20.0]
[1672765998834,30.0,13.284,13.274,20.0]
[1672765999346,330.9571,13.285,13.275,11.08137784]
[1672765999553,306.0573,13.285,13.276,20.0]
[1672765999767,30.0,13.284,13.276,20.0]
[1672765999986,86.51,13.284,13.276,20.0]
[1672766000389,86.51,13.284,13.272,20.0]
[1672766001876,30.0,13.283,13.263,24.1958]
[1672766002088,30.0,13.281,13.263,24.1958]
[1672766002281,56.53,13.28,13.263,24.1958]
[1672766002492,30.0,13.279,13.263,24.1958]
[1672766002706,56.54,13.278,13.262,59.33717784]
[1672766002917,30.0,13.277,13.263,11.08137784]
[1672766003132,56.55,13.276,13.263,11.08137784]
[1672766003340,104.0949,13.278,13.263,11.08137784]
[1672766005359,104.0949,13.278,13.264,20.0]
[1672766005762,104.0949,13.278,13.265,11.08137784]
[1672766005763,47.5549,13.278,13.265,11.08137784]
[1672766006086,47.5549,13.278,13.266,20.0]
[1672766006510,47.5549,13.278,13.267,11.08137784]
[1672766006928,47.5549,13.278,13.268,20.0]
[1672766007480,56.54,13.277,13.268,20.0]
[1672766007903,47.5549,13.278,13.268,20.0]
[1672766008944,104.0949,13.278,13.268,20.0]
[1672766009568,30.0,13.277,13.268,20.0]
[1672766009903,56.55,13.276,13.268,20.0]
[1672766010094,56.55,13.276,13.265,20.0]
[1672766011056,56.55,13.276,13.265,31.08137784]
[1672766011377,104.0949,13.278,13.265,31.08137784]
[1672766011895,47.5549,13.278,13.265,31.08137784]
[1672766013790,56.54,13.277,13.265,31.08137784]
[1672766013986,47.5549,13.278,13.265,31.08137784]
[1672766015363,56.54,13.277,13.265,20.0]
[1672766015578,30.0,13.276,13.264,20.0]
[1672766015772,56.55,13.275,13.264,20.0]
[1672766016924,47.5549,13.278,13.264,55.34192229]
[1672766018087,47.5549,13.278,13.264,20.0]
[1672766018424,104.0949,13.278,13.264,20.0]
[1672766020410,104.0949,13.278,13.265,30.0]
[1672766020607,47.5549,13.278,13.266,20.0]
[1672766021654,47.5549,13.278,13.266,62.16933095]
[1672766021865,47.5549,13.278,13.267,20.0]
[1672766022286,47.5549,13.278,13.267,82.16933095]
[1672766022496,47.5549,13.278,13.267,20.0]
[1672766022816,47.0549,13.278,13.264,67.7988]
[1672766023027,103.5949,13.278,13.264,67.7988]
[1672766023352,30.0,13.277,13.264,67.7988]
[1672766023671,30.0,13.275,13.264,67.7988]
[1672766024089,56.55,13.276,13.264,67.7988]
[1672766024611,56.54,13.277,13.264,67.7988]
[1672766025025,57.0549,13.278,13.264,67.7988]
[1672766025983,113.5949,13.278,13.264,67.7988]
[1672766028077,30.0,13.277,13.264,67.7988]
[1672766028699,113.5949,13.278,13.264,67.7988]
[1672766028913,57.0549,13.278,13.264,123.38146429]
[1672766029880,57.0549,13.278,13.264,67.7988]
[1672766032190,30.0,13.277,13.264,67.7988]
[1672766032922,30.0,13.275,13.264,67.7988]
[1672766034082,165.3755,13.276,13.264,67.7988]
[1672766034296,108.8255,13.276,13.264,67.7988]
[1672766035430,57.0549,13.278,13.264,67.7988]
[1672766035431,10.0,13.278,13.265,30.0]
[1672766035644,10.0,13.278,13.267,30.0]
[1672766035845,10.0,13.278,13.268,20.0]
[1672766038581,10.0,13.278,13.267,20.0]
[1672766039958,10.0,13.278,13.268,35.34192229]
[1672766040279,10.0,13.278,13.269,20.0]
[1672766040701,10.0,13.278,13.267,20.0]
[1672766042358,30.0,13.276,13.266,47.4319]
[1672766042575,56.55,13.275,13.266,47.4319]
[1672766042803,30.0,13.276,13.266,47.4319]
[1672766043019,56.54,13.277,13.266,47.4319]
[1672766043210,30.0,13.276,13.266,47.4319]
[1672766043633,56.55,13.275,13.266,47.4319]
[1672766044274,56.55,13.275,13.267,20.0]
[1672766044701,56.55,13.275,13.261,23.1783]
[1672766044894,133.7205,13.276,13.261,23.1783]
[1672766045104,103.7205,13.276,13.261,23.1783]
[1672766045315,47.1705,13.276,13.261,23.1783]
[1672766045532,47.1705,13.276,13.262,20.0]
[1672766045737,30.0,13.274,13.262,20.0]
[1672766046256,30.0,13.272,13.248,121.04999876]
[1672766046464,56.73824865,13.27,13.249,20.0]
[1672766046818,56.73824865,13.268,13.25,8.03]
[1672766047112,56.57,13.27,13.252,30.0]
[1672766047327,112.6071,13.272,13.252,30.0]
[1672766047328,112.6071,13.272,13.254,30.0]
[1672766047534,112.6071,13.272,13.255,67.1684]
[1672766047727,112.6071,13.272,13.256,30.0]
[1672766047937,112.6071,13.272,13.256,77.1684]
[1672766048144,112.6071,13.272,13.257,20.0]
[1672766048563,86.57,13.271,13.256,47.1684]
[1672766048780,30.0,13.27,13.256,47.1684]
[1672766048997,56.58,13.269,13.256,47.1684]
[1672766051519,56.58,13.269,13.257,20.0]
[1672766053832,30.0,13.268,13.257,20.0]
[1672766054043,56.58,13.267,13.257,20.0]
[1672766054663,56.58,13.268,13.257,20.0]
[1672766055292,30.0,13.267,13.257,20.0]
[1672766055502,56.59,13.266,13.257,20.0]
[1672766055732,30.0,13.265,13.257,20.0]
[1672766056043,30.0,13.263,13.257,20.0]
[1672766056272,30.0,13.263,13.241,121.1873128]
[1672766056495,221.589,13.262,13.244,47.5847]
[1672766056701,221.589,13.262,13.245,20.0]
[1672766056892,221.589,13.262,13.246,30.0]
[1672766057535,30.0,13.261,13.245,44.50563359]
[1672766057738,30.0,13.259,13.244,47.5847]
[1672766057955,56.62,13.258,13.244,47.5847]
[1672766058158,56.62,13.258,13.244,107.13781505]
[1672766058376,56.62,13.259,13.245,30.0]
[1672766058800,56.62,13.259,13.245,146.67611531]
[1672766059851,116.7196,13.262,13.246,51.06]
[1672766060058,30.0,13.258,13.247,20.0]
[1672766060270,56.63,13.257,13.246,20.0]
[1672766060690,20.0,13.256,13.237,56.71]
[1672766060897,30.0,13.254,13.238,20.0]
[1672766061100,30.0,13.254,13.236,56.72]
[1672766061101,56.64,13.253,13.237,20.0]
[1672766061518,30.0,13.252,13.236,22.7221]
[1672766061730,30.0,13.25,13.236,22.7221]
[1672766061934,56.66,13.249,13.236,22.7221]
[1672766062151,30.0,13.248,13.236,22.7221]
[1672766062359,56.67,13.247,13.236,22.7221]
[1672766062780,110.3539,13.249,13.237,20.0]
[1672766062992,110.3539,13.249,13.238,30.0]
[1672766063427,110.3539,13.249,13.238,41.08137784]
[1672766063853,47.4136,13.251,13.241,30.0]
[1672766064163,47.4136,13.251,13.243,30.0]
[1672766064475,30.0,13.262,13.244,56.68]
[1672766064695,30.0,13.26,13.245,20.0]
[1672766064999,104.0236,13.261,13.246,30.0]
[1672766065202,47.4136,13.261,13.247,76.67]
[1672766065630,47.4136,13.261,13.247,69.00794555]
[1672766066559,47.4136,13.261,13.247,80.08932339]
[1672766068034,47.4136,13.261,13.247,31.08137784]
[1672766068783,47.4136,13.261,13.247,20.0]
[1672766069203,47.4136,13.261,13.246,20.0]
[1672766069407,47.4136,13.261,13.25,8.03]
[1672766069612,47.4136,13.261,13.251,76.65]
[1672766069817,47.4136,13.261,13.251,87.73137784]
[1672766070028,47.4136,13.261,13.251,76.65]
[1672766070239,47.4136,13.261,13.25,49.00794555]
[1672766070240,47.4136,13.261,13.246,51.52798759]
[1672766070451,47.4136,13.261,13.238,153.76622728]
[1672766070452,86.61,13.26,13.247,20.0]
[1672766070673,30.0,13.259,13.245,20.0]
[1672766070887,30.0,13.257,13.244,104.6727]
[1672766071101,30.0,13.257,13.244,115.75407784]
[1672766071631,146.305,13.257,13.244,115.75407784]
[1672766072151,146.305,13.257,13.245,20.0]
[1672766072558,146.305,13.257,13.245,31.08137784]
[1672766072984,116.305,13.257,13.245,31.08137784]
[1672766073405,30.0,13.256,13.245,31.08137784]
[1672766074036,30.0,13.256,13.245,20.0]
[1672766075287,56.64,13.255,13.245,20.0]
[1672766075702,30.0,13.254,13.243,23.5507]
[1672766075919,56.64,13.253,13.236,48.5585]
[1672766076131,104.0325,13.253,13.237,20.0]
[1672766076673,30.0,13.252,13.237,20.0]
[1672766076882,56.65,13.251,13.237,31.08137784]
[1672766077084,140.2224,13.25,13.237,11.08137784]
[1672766077408,140.2224,13.25,13.236,48.5585]
[1672766077805,110.2224,13.25,13.236,48.5585]
[1672766078233,110.2224,13.25,13.237,11.08137784]
[1672766078656,110.2224,13.25,13.238,20.0]
[1672766079092,110.2224,13.25,13.238,31.08137784]
[1672766079940,110.2224,13.25,13.24,30.0]
[1672766080258,110.2224,13.25,13.241,20.0]
[1672766081610,110.2224,13.25,13.239,20.0]
[1672766082363,30.0,13.249,13.239,19.5]
[1672766083395,110.2224,13.25,13.239,19.5]
[1672766083925,110.2224,13.25,13.239,30.58137784]
[1672766084345,110.2224,13.25,13.239,19.5]
[1672766086771,110.2224,13.25,13.24,11.08137784]
[1672766086987,166.8824,13.25,13.24,11.08137784]
[1672766087210,30.0,13.249,13.241,20.0]
[1672766087735,110.2224,13.25,13.239,20.0]
[1672766088128,110.2224,13.25,13.24,11.08137784]
[1672766088349,47.3925,13.251,13.241,20.0]
[1672766088972,47.3925,13.251,13.241,31.08137784]
[1672766089807,47.3925,13.251,13.241,20.0]
[1672766090052,47.3925,13.251,13.24,20.0]
[1672766091406,47.3925,13.251,13.241,30.0]
[1672766091610,47.3925,13.251,13.242,20.0]
[1672766092226,47.3925,13.251,13.243,11.08137784]
[1672766092447,47.3925,13.251,13.244,20.0]
[1672766092982,47.3925,13.251,13.245,11.08137784]
[1672766093195,111.1701,13.253,13.246,20.0]
[1672766093957,56.64,13.254,13.243,11.08137784]
[1672766094145,56.64,13.254,13.244,20.0]
[1672766094566,56.64,13.254,13.244,31.08137784]
[1672766095316,56.64,13.255,13.244,31.08137784]
[1672766096899,160.9468,13.256,13.244,31.08137784]
[1672766097417,160.9468,13.256,13.244,11.08137784]
[1672766097616,84.03925565,13.243,13.215,39.2907194]
[1672766097826,93.24413352,13.244,13.205,39.2907194]
[1672766097827,84.03925565,13.241,13.205,39.2907194]
[1672766098051,37.23091127,13.235,13.2,125.76872783]
[1672766098258,37.23091127,13.229,13.2,125.76872783]
[1672766098478,160.78925565,13.228,13.2,125.76872783]
[1672766098669,40.6,13.22,13.211,796.85826198]
[1672766098875,140.82925565,13.219,13.211,796.85826198]
[1672766099521,140.82925565,13.219,13.199,126.65452947]
[1672766099834,84.03925565,13.223,13.2,196.46872783]
[1672766100053,84.03925565,13.223,13.201,30.0]
[1672766100257,84.03925565,13.224,13.21,8.14]
[1672766100662,84.03925565,13.224,13.211,20.0]
[1672766101089,30.0,13.222,13.204,92.9907]
[1672766101317,30.0,13.22,13.204,92.9907]
[1672766101513,84.03925565,13.219,13.204,44.1751]
[1672766101725,84.03925565,13.219,13.205,30.0]
[1672766101923,84.03925565,13.224,13.21,8.14]
[1672766102134,84.03925565,13.228,13.212,30.0]
[1672766102339,30.0,13.237,13.212,30.0]
[1672766102340,56.72,13.236,13.212,30.0]
[1672766102563,41.54599623,13.229,13.206,113.7858]
[1672766102772,255.88795565,13.228,13.2,133.94872783]
[1672766102981,255.88795565,13.228,13.2,166.50872783]
[1672766103499,255.88795565,13.228,13.201,30.0]
[1672766103500,84.03925565,13.226,13.201,30.0]
[1672766103704,30.0,13.227,13.201,30.0]
[1672766103705,84.03925565,13.224,13.201,30.0]
[1672766104138,84.03925565,13.222,13.202,39.00108618]
[1672766104458,30.0,13.219,13.199,113.7858]
[1672766104657,30.0,13.217,13.198,149.79805134]
[1672766104871,84.03925565,13.216,13.198,149.79805134]
[1672766105082,84.03925565,13.216,13.198,21.06517944]
[1672766105415,84.03925565,13.216,13.199,30.0]
[1672766105631,84.03925565,13.217,13.199,30.0]
[1672766105948,84.03925565,13.217,13.198,21.06517944]
[1672766105949,86.8,13.216,13.198,21.06517944]
[1672766106129,84.03925565,13.215,13.198,21.06517944]
[1672766106346,56.81,13.214,13.198,21.06517944]
[1672766106553,114.03925565,13.213,13.198,21.06517944]
[1672766106761,30.0,13.211,13.198,21.06517944]
[1672766106976,140.86925565,13.21,13.198,21.06517944]
[1672766107195,30.0,13.208,13.198,21.06517944]
[1672766107409,140.86925565,13.21,13.198,21.06517944]
[1672766107410,140.87925565,13.207,13.198,21.06517944]
[1672766107937,30.0,13.206,13.198,21.06517944]
[1672766108156,84.03925565,13.205,13.198,21.06517944]
[1672766108459,30.0,13.207,13.198,21.06517944]
[1672766108655,84.03925565,13.205,13.198,21.06517944]
[1672766108860,84.03925565,13.202,13.198,21.06517944]
[1672766109069,84.03925565,13.2,13.198,0.00517944]
[1672766109310,84.03925565,13.197,13.188,20.0]
[1672766109501,140.92925565,13.197,13.187,13.39301663]
[1672766110552,50.0,13.196,13.187,13.39301663]
[1672766110784,56.89,13.195,13.187,13.39301663]
[1672766110975,114.03925565,13.194,13.187,13.39301663]
[1672766111188,30.0,13.192,13.187,13.39301663]
[1672766111498,30.0,13.19,13.17,30.0]
[1672766111716,140.95925565,13.189,13.17,30.0]
[1672766111910,140.95925565,13.189,13.176,122.6270876]
[1672766112127,84.03925565,13.189,13.176,122.6270876]
[1672766112456,38.43067623,13.194,13.176,122.6270876]
[1672766112656,84.03925565,13.192,13.177,20.0]
[1672766112866,84.03925565,13.19,13.176,122.6270876]
[1672766113081,84.03925565,13.188,13.176,122.6270876]
[1672766113291,84.03925565,13.191,13.177,30.0]
[1672766113511,56.92,13.19,13.177,30.0]
[1672766114031,86.9,13.194,13.176,122.6270876]
[1672766114238,84.03925565,13.193,13.176,122.6270876]
[1672766114459,56.91,13.192,13.177,41.08137784]
[1672766114776,8.17,13.19,13.176,122.6270876]
[1672766114980,100.46813662,13.189,13.176,122.6270876]
[1672766115195,100.46813662,13.189,13.177,20.0]
[1672766115405,43.54813662,13.189,13.177,20.0]
[1672766115616,100.48983097,13.191,13.177,20.0]
[1672766115824,56.91,13.191,13.177,20.0]
[1672766116035,30.0,13.194,13.177,20.0]
[1672766116226,101.33718796,13.193,13.177,20.0]
[1672766116657,30.0,13.192,13.177,20.0]
[1672766116866,38.15,13.19,13.177,20.0]
[1672766117091,106.28631505,13.189,13.177,20.0]
[1672766117303,106.28631505,13.189,13.176,122.6270876]
[1672766117304,30.0,13.188,13.176,122.6270876]
[1672766117506,134.48477886,13.187,13.176,122.6270876]
[1672766117721,30.0,13.186,13.176,122.6270876]
[1672766118041,30.0,13.184,13.176,122.6270876]
[1672766118248,114.50477886,13.183,13.176,122.6270876]
[1672766118565,57.55477886,13.181,13.176,122.6270876]
[1672766118759,57.55477886,13.179,13.176,122.6270876]
[1672766118970,114.50477886,13.181,13.176,122.6270876]
[1672766119386,58.93895734,13.179,13.176,0.0070876]
[1672766119595,69.08804498,13.176,13.164,85.6319601]
[1672766119824,69.08804498,13.174,13.164,85.6319601]
[1672766120015,69.08804498,13.172,13.164,85.6319601]
[1672766120224,30.0,13.177,13.164,85.6319601]
[1672766120225,69.08804498,13.17,13.164,85.6319601]
[1672766120456,87.01,13.169,13.164,85.6319601]
[1672766120652,69.08804498,13.168,13.164,85.6319601]
[1672766121906,69.08804498,13.171,13.164,85.6319601]
[1672766122116,41.90602562,13.173,13.164,85.6319601]
[1672766122324,69.08804498,13.18,13.166,30.0]
[1672766122558,69.08804498,13.18,13.167,20.0]
[1672766123594,69.08804498,13.18,13.166,20.0]
[1672766123808,69.08804498,13.18,13.166,30.0]
[1672766124023,69.08804498,13.18,13.167,20.0]
[1672766124856,22.9835,13.181,13.168,11.08137784]
[1672766125066,22.9835,13.181,13.169,20.0]
[1672766125483,69.08804498,13.185,13.17,49.25137784]
[1672766125699,111.311,13.186,13.172,30.0]
[1672766125922,111.311,13.186,13.173,20.0]
[1672766126347,30.0,13.185,13.173,20.0]
[1672766126539,30.0,13.185,13.167,20.0]
[1672766126749,30.0,13.183,13.16,8.11]
[1672766126962,56.95,13.182,13.166,11.08137784]
[1672766127169,30.0,13.181,13.16,8.11]
[1672766127395,56.96,13.18,13.165,11.08137784]
[1672766127605,43.86553359,13.179,13.165,11.08137784]
[1672766127817,30.0,13.179,13.165,11.08137784]
[1672766128229,30.0,13.179,13.16,8.2]
[1672766128428,44.35802757,13.181,13.164,96.71333794]
[1672766128642,44.35802757,13.181,13.165,30.0]
[1672766129066,47.07718123,13.182,13.166,20.0]
[1672766129712,30.0,13.182,13.166,20.0]
[1672766129930,86.95,13.182,13.165,20.0]
[1672766130241,30.0,13.18,13.165,20.0]
[1672766130426,56.96,13.179,13.165,20.0]
[1672766131170,56.95,13.181,13.166,30.0]
[1672766131495,30.0,13.182,13.167,20.0]
[1672766131805,56.95,13.181,13.167,20.0]
[1672766132424,56.95,13.181,13.165,20.0]
[1672766133066,30.0,13.18,13.165,20.0]
[1672766133274,56.96,13.179,13.165,20.0]
[1672766133796,30.0,13.177,13.164,85.6319601]
[1672766134026,46.86534708,13.175,13.165,20.0]
[1672766134333,46.86534708,13.176,13.165,20.0]
[1672766134545,103.84534708,13.176,13.165,20.0]
[1672766134944,103.84534708,13.176,13.166,30.0]
[1672766135159,103.81534708,13.181,13.167,20.0]
[1672766135374,46.86534708,13.181,13.167,20.0]
[1672766135581,56.95,13.183,13.167,20.0]
[1672766135790,56.92,13.188,13.167,20.0]
[1672766136117,56.92,13.188,13.17,8.2]
[1672766136326,56.92,13.188,13.171,20.0]
[1672766136837,30.0,13.187,13.171,20.0]
[1672766137166,56.92,13.188,13.171,20.0]
[1672766137478,114.232,13.189,13.171,20.0]
[1672766137692,56.9,13.193,13.171,31.08137784]
[1672766138101,30.0,13.192,13.171,31.08137784]
[1672766138324,56.91,13.191,13.171,20.0]
[1672766138640,56.91,13.191,13.164,115.6319601]
[1672766138641,62.16275568,13.171,13.164,85.6319601]
[1672766138841,62.16275568,13.171,13.115,39.2907194]
[1672766138842,65.24554742,13.169,13.13,129.58367732]
[1672766139044,65.24554742,13.167,13.14,118.0716]
[1672766139260,30.0,13.165,13.14,118.0716]
[1672766139481,57.03,13.164,13.14,118.0716]
[1672766139684,57.01,13.167,13.14,159.0816]
[1672766139881,11.08137784,13.174,13.15,40.87]
[1672766140096,109.2465,13.179,13.153,30.0]
[1672766140318,109.2465,13.179,13.153,139.6856]
[1672766140530,56.97,13.178,13.154,30.0]
[1672766141056,56.97,13.178,13.155,20.0]
[1672766141269,56.97,13.178,13.156,30.0]
[1672766141460,56.97,13.178,13.157,20.0]
[1672766141878,56.93,13.186,13.157,20.0]
[1672766142103,30.0,13.182,13.16,8.19]
[1672766142311,30.0,13.182,13.162,30.0]
[1672766142520,56.95,13.181,13.163,20.0]
[1672766142845,56.93,13.186,13.163,20.0]
[1672766143055,30.0,13.184,13.163,20.0]
[1672766143242,56.95,13.183,13.163,20.0]
[1672766143459,30.0,13.182,13.162,20.0]
[1672766143780,30.0,13.18,13.162,20.0]
[1672766143991,56.96,13.179,13.152,3993.00714068]
[1672766144189,30.0,13.177,13.153,136.9397]
[1672766144405,42.05165809,13.175,13.153,116.9397]
[1672766144620,42.67051268,13.172,13.153,116.9397]
[1672766144832,43.09586252,13.177,13.154,11.08137784]
[1672766145036,46.46968865,13.176,13.155,30.0]
[1672766145246,38.22,13.19,13.16,8.2]
[1672766145247,46.46968865,13.187,13.16,8.2]
[1672766145465,30.0,13.182,13.16,8.2]
[1672766145673,56.95,13.181,13.161,20.0]
[1672766145888,56.95,13.181,13.158,20.0]
[1672766145889,30.0,13.18,13.158,20.0]
[1672766146210,30.0,13.178,13.158,20.0]
[1672766146410,56.97,13.177,13.158,20.0]
[1672766146613,30.0,13.176,13.156,20.0]
[1672766146824,56.98,13.175,13.156,50.0]
[1672766147034,56.98,13.175,13.156,20.0]
[1672766147357,56.98,13.175,13.156,50.0]
[1672766148185,56.98,13.175,13.156,20.0]
[1672766148404,56.98,13.175,13.156,50.0]
[1672766148720,56.96,13.179,13.16,8.21]
[1672766148940,30.0,13.18,13.161,20.0]
[1672766149140,56.96,13.179,13.161,20.0]
[1672766149358,56.93,13.187,13.162,30.0]
[1672766149553,30.0,13.186,13.163,20.0]
[1672766149770,56.94,13.185,13.163,31.08137784]
[1672766150189,56.94,13.185,13.165,30.0]
[1672766150514,56.94,13.185,13.166,31.08137784]
[1672766151119,30.0,13.184,13.166,31.08137784]
[1672766151350,30.0,13.182,13.166,10.0]
[1672766151560,56.95,13.181,13.167,11.08137784]
[1672766151884,29.5,13.182,13.167,11.08137784]
[1672766152088,118.4183,13.187,13.167,11.08137784]
[1672766152089,175.3483,13.187,13.167,11.08137784]
[1672766152289,118.4183,13.187,13.17,8.19]
[1672766152508,30.0,13.186,13.17,8.19]
[1672766153031,118.4183,13.187,13.17,8.19]
[1672766153237,56.9,13.193,13.171,31.08137784]
[1672766153555,30.0,13.192,13.171,20.0]
[1672766153768,30.0,13.19,13.172,119.3567]
[1672766153991,30.0,13.188,13.173,20.0]
[1672766154204,56.93,13.187,13.173,20.0]
[1672766154395,30.0,13.186,13.173,20.0]
[1672766154604,30.0,13.186,13.169,20.0]
[1672766155461,30.0,13.184,13.168,119.3567]
[1672766155675,30.0,13.184,13.161,112.7548]
[1672766155676,56.95,13.183,13.161,112.7548]
[1672766155877,30.0,13.182,13.161,112.7548]
[1672766156082,30.0,13.18,13.161,112.7548]
[1672766156293,30.0,13.178,13.161,112.7548]
[1672766157247,30.0,13.178,13.162,50.0]
[1672766157446,30.0,13.178,13.162,20.0]
[1672766158068,171.1287,13.179,13.162,50.0]
[1672766158493,30.0,13.178,13.162,20.0]
[1672766159336,171.1287,13.179,13.163,41.08137784]
[1672766159548,916.96182254,13.209,13.163,41.08137784]
[1672766159549,56.94,13.185,13.17,8.21]
[1672766159756,109.2069,13.187,13.171,20.0]
[1672766162703,56.91,13.192,13.171,20.0]
[1672766162912,110.9518,13.195,13.173,30.0]
[1672766163120,56.9,13.194,13.174,20.0]
[1672766163329,30.0,13.193,13.174,20.0]
[1672766163663,56.91,13.192,13.174,20.0]
[1672766164292,56.91,13.192,13.174,30.0]
[1672766164489,56.9,13.193,13.175,20.0]
[1672766164700,56.9,13.193,13.175,31.08137784]
[1672766165561,56.9,13.193,13.175,20.0]
[1672766165755,30.0,13.192,13.175,20.0]
[1672766165966,56.91,13.191,13.175,20.0]
[1672766166194,56.91,13.191,13.174,30.0]
[1672766166500,56.9,13.193,13.175,31.08137784]
[1672766166713,94.46182254,13.221,13.18,40.99]
[1672766166714,8.19,13.21,13.18,40.99]
[1672766166927,117.3559,13.205,13.181,149.873]
[1672766167133,56.86,13.204,13.19,8.2]
[1672766167343,117.3559,13.205,13.19,8.2]
[1672766167557,117.3559,13.205,13.191,20.0]
[1672766167746,30.0,13.204,13.191,20.0]
[1672766168192,86.86,13.204,13.184,20.0]
[1672766168712,57.25628629,13.203,13.183,20.0]
[1672766169030,30.0,13.201,13.182,20.0]
[1672766169242,30.0,13.199,13.182,20.0]
[1672766169549,30.0,13.197,13.182,20.0]
[1672766169769,56.89,13.196,13.181,119.873]
[1672766169956,30.0,13.195,13.172,157.87398481]
[1672766170174,113.25354769,13.196,13.176,11.08137784]
[1672766170378,56.36354769,13.194,13.176,11.08137784]
[1672766170593,86.89,13.197,13.18,8.21]
[1672766170804,170.9168,13.198,13.18,8.21]
[1672766171013,30.0,13.197,13.181,11.08137784]
[1672766171223,30.0,13.197,13.181,31.08137784]
[1672766171450,170.9168,13.198,13.181,20.0]
[1672766173957,56.87,13.2,13.182,30.0]